{"text_format":"1","workbook":"xlsx","n_sheets":4,"sheets":["Antrag","Daten","Fruchtarten","Hilfe"],"not_rendered":{"charts":0,"images":0,"macros":1,"external_links":0,"defined_names":68,"comments":0,"pivot_tables":0},"unopened":[],"bounds":{"document_bytes":16777216,"sheet_cells":100000,"rows_first":2000,"rows_last":500,"rows_between":2000,"halvings":0,"cell_chars":16384,"cell_head_chars":4096},"cells_cut":0,"cells_raw":0,"read":"whole","date_system":"1900"}

{"sheet":"Antrag","index":0,"n_rows":128,"n_cols":14,"rows_kept":128,"cut":false,"hidden":false,"merged":[[42,4,42,6],[42,10,42,11],[38,2,38,7],[38,10,38,11],[41,2,41,11],[39,2,39,11],[62,4,62,7],[62,8,62,11],[43,4,43,6],[43,10,43,11],[42,8,42,9],[48,10,48,11],[40,2,40,11],[45,10,45,11],[47,2,47,11],[60,2,60,11],[128,2,128,11],[98,3,98,6],[99,3,99,6],[100,3,100,6],[101,3,101,6],[102,3,102,6],[93,7,93,11],[94,7,94,11],[102,7,102,11],[95,7,95,11],[96,7,96,11],[97,7,97,11],[98,7,98,11],[99,7,99,11],[100,7,100,11],[101,7,101,11],[126,2,126,6],[127,2,127,6],[107,2,107,11],[116,2,116,11],[120,2,120,11],[103,2,103,11],[93,3,93,6],[94,3,94,6],[95,3,95,6],[96,3,96,6],[97,3,97,6],[125,2,125,11],[55,2,55,11],[88,2,88,11],[123,2,123,11],[74,4,74,6],[74,8,74,9],[74,10,74,11],[76,2,76,7],[76,10,76,11],[67,7,67,8],[68,7,68,8],[66,2,66,11],[67,4,67,6],[67,10,67,11],[68,10,68,11],[70,2,70,7],[70,10,70,11],[117,2,117,11],[59,2,59,11],[61,2,61,4],[78,2,78,11],[80,2,84,11],[91,2,91,11],[85,2,85,11],[73,4,73,6],[73,8,73,9],[73,10,73,11],[23,2,23,11],[63,2,63,11],[48,2,48,9],[53,2,53,11],[54,2,54,11],[52,2,52,11],[58,2,58,9],[58,10,58,11],[45,2,45,7],[57,2,57,11],[79,2,79,11],[49,2,49,11],[43,8,43,9],[86,2,86,11],[64,6,64,7],[64,9,64,11],[72,2,72,11],[36,10,36,11],[16,2,16,3],[16,4,16,6],[8,2,8,11],[35,10,35,11],[29,2,29,11],[19,2,19,6],[19,7,19,11],[24,7,24,11],[25,7,25,11],[24,2,24,6],[25,2,25,6],[32,9,32,11],[11,2,11,6],[12,2,12,6],[13,2,13,6],[14,2,14,6],[15,2,15,3],[17,7,17,11],[18,7,18,11],[17,2,17,6],[34,2,34,11],[126,7,127,11],[0,2,0,4],[1,2,1,9],[30,2,30,11],[32,6,32,7],[108,2,115,11],[92,3,92,6],[92,7,92,11],[18,2,18,6],[15,7,15,11],[36,7,36,8],[35,4,35,6],[35,7,35,8],[15,4,15,6],[11,7,11,11],[12,7,12,11],[13,7,13,11],[14,7,14,11],[16,7,16,11],[22,2,22,11],[104,2,104,11],[31,2,31,11],[33,2,33,11],[10,2,10,11]]}
[]
[null,null,"Antrag zur Anwendung von Pflanzenschutzmitteln in Gebieten mit Bedeutung für den Naturschutz (§ 4 Abs. 2 PflSchAnwV)",null,null,null,null,null,null,null,null,{"$f":"TODAY()","v":"2021-11-12"}]
[]
[null,null,"Direktor der Landwirtschaftskammer NRW als Landesbeauftragter"]
[null,null,"Pflanzenschutzdienst 62.3"]
[null,null,"Gartenstr. 11"]
[null,null,"50765 Köln-Auweiler "]
[]
[null,null,"Antrag auf Erteilung einer Genehmigung zur Anwendung von Pflanzenschutzmitteln auf Ackerflächen in Naturschutzgebieten, Nationalparken, nationalen Naturmonumenten, Naturdenkmälern und gesetzlich geschützten Biotopen im Sinne des § 30 des Bundesnaturschutzgesetzes gemäß § 4 Absatz 2 der Pflanzenschutz-Anwendungsverordnung in der aktuellen Fassung."]
[]
[null,null,"1. Antragsteller"]
[null,null,"Betrieb *",null,null,null,null,"Betriebsnummer *"]
[]
[null,null,"Name *",null,null,null,null,"Vorname *"]
[]
[null,null,"Postleitzahl *",null,"Ort *",null,null,"Strasse, Nr. *"]
[]
[null,null,"E-Mail *",null,null,null,null,"Telefon"]
[]
[null,null,"Antrag ausgefüllt durch (bitte leer lassen, wenn Sie den Antrag selber ausgefüllt haben)"]
[]
[]
[]
[null,null,"2. Schutzgbiet"]
[null,null,"Name des Schutzgebiets *",null,null,null,null,"Art des Schutzgebiets  *"]
[]
[]
[]
[]
[null,null,"3. Beantragte Flächen im Schutzgebiet und Nutzung"]
[null,null,"Für die unterhalb aufgeführten Flächen wurde kein Antrag auf Erschwernisausgleich gestellt oder bewilligt. "]
[]
[null,null,"Bitte auswählen: Angabe als"]
[]
[null,null,"3.1 Angabe von Feldblöcken im Schutzgebiet"]
[null,null,"lfd. Nr.","Größe (ha)","Feldblock (FLIK)",null,null,"Schlagnummer",null,"Teilschlag","Fruchtart"]
[null,null,1,null,null,null,null,null,null,null,null,null,{"$f":"IFERROR(VLOOKUP(K37,Fruchtarten[],2,0),\"\")","v":""},{"$f":"IFERROR(VLOOKUP(K37,Fruchtarten[],3,0),\"\")","v":""}]
[null,null,"Ende",{"$f":"SUMIF($M$37:$M$37,\"x\",$D$37:$D$37)","v":0},{"$f":"SUMIF($N$37:$N$37,\"x\",$D$37:$D$37)","v":0},null,null,null,null,null,"Summe Ackerfläche",{"$f":"Acker1","v":0}]
[null,null,"Summe der Flächen im Schutzgebiet",null,null,null,null,null,null,null,{"$f":"SUM($D$37:$D$37)","v":0}]
[]
[]
[null,null,"3.2 Kein Feldblocksystem für Flächen im Schutzgebiet vorhanden"]
[null,null,"lfd. Nr.","Größe (ha)","Gemarkungsnummer",null,null,"Flurnummer","Flurstück",null,"Fruchart"]
[null,null,1,null,null,null,null,null,null,null,null,null,{"$f":"IFERROR(VLOOKUP(K44,Fruchtarten[],2,0),\"\")","v":""},{"$f":"IFERROR(VLOOKUP(K44,Fruchtarten[],3,0),\"\")","v":""}]
[null,null,"Ende",{"$f":"SUMIF($M$44:$M$44,\"x\",$D$44:$D$44)","v":0},{"$f":"SUMIF($N$44:$N$44,\"x\",$D$44:$D$44)","v":0},null,null,null,null,null,"Summe Ackerfläche:",{"$f":"Acker2","v":0}]
[null,null,"Summe der Flächen im Schutzgebiet",null,null,null,null,null,null,null,{"$f":"SUM($D$44:$D$44)","v":0}]
[]
[]
[null,null,"Gesamtsumme der eingegeben Flächen im Schutzgebiet",null,null,null,null,null,null,null,{"$f":"SUBTOTAL(109,SummeFB,SummeFN)","v":0}]
[]
[]
[]
[null,null,"4. Zweck der Anwendung gemäß § 4 Absatz 1 PflSchAnwV Absatz 2"]
[]
[]
[]
[]
[null,null,"5. Einschätzung erheblicher landwirtschaftlicher oder sonstiger wirtschaftlicher Schäden"]
[null,null,"Geben Sie bitte die \"Gesamtgröße Ihrer insgesamt bewirtschafteten Ackerfläche\" an, um zu ermitteln, ob Ihre Ackerflächen im Schutzgebiet einen Flächenanteil von 30% übersteigt.\nRelevante Flächen sind z.B. Ackerland, Kulturen wie Obst und Gemüse, Zierpflanzenanbau.\nNicht relevante Flächen sind z.B. Dauergrünland, Bracheflächen oder Blühstreifen.",null,null,null,null,null,null,null,null,null,{"$f":"IF(Acker1+Acker2<=AnteilAckerFläche,\"x\",\"\")","v":"x"},{"$f":"Ackerfläche/100*30","v":0}]
[]
[]
[null,null,"Antragsgrund:"]
[null,null,null,null,"Aktivieren, wenn einzelne Flächen ohne die Anwendung von Pflanzenschutzmitteln nicht zu bewirtschaften oder verwendbar sind:  z.B. Flächen im Gartenbau, Obst- und Weinbau oder zur Vermehrung von Saatgut und Pflanzgut  oder  Mähweiden mit Verunkrautung mit Jakobskreuzkraut. Bitte geben Sie die Details Ihres Einzelfalls in der Begründung an.",null,null,null,"Aktivieren, wenn der ackerflächenbezogene betriebliche Umsatz Ihres Betriebes aufgrund der Auflagen um mehr als 15 % sinkt.  Geben Sie alle von Ihnen bewirtschafteten Flächen mit Größe und ackerbaulicher Kultur an. Grundlage ist die Anbauplanung des kommenden/laufenden Jahres, auf der von Ihnen selbst bewirtschafteten Fläche. Jede Fläche ist nur einmal anzugeben. Bei Fruchtwechsel kann die wertigste Kultur angegeben werden."]
[]
[null,null,"Bitte auswählen: Angabe als"]
[]
[null,null,"5.1 Angabe aller bewirtschafteten Flächen außerhalb des Schutzgebiets als Feldblock"]
[null,null,"lfd. Nr.","Größe (ha)","Feldblock (FLIK)",null,null,"Schlagnummer",null,"Teilschlag","Fruchtart"]
[null,null,1,null,null,null,null,null,null,null,null,null,{"$f":"IFERROR(VLOOKUP($K$69,Fruchtarten[],2,0),\"\")","v":""},{"$f":"IFERROR(VLOOKUP($K$69,Fruchtarten[],3,0),\"\")","v":""}]
[null,null,"Ende",{"$f":"SUMIF($M$69:$M$69,\"x\",$D$69:$D$69)","v":0},{"$f":"SUMIF($N$69:$N$69,\"x\",$D$69:$D$69)","v":0}]
[null,null,"Summe der Flächen:",null,null,null,null,null,null,null,{"$f":"SUM($D$69:$D$69)","v":0}]
[]
[null,null,"5.1 Angabe aller bewirtschafteten Flächen außerhalb des Schutzgebiets ohne Feldblocksystem"]
[null,null,"lfd. Nr.","Größe (ha)","Gemarkungsnummer",null,null,"Flurnummer","Flurstück",null,"Fruchtart"]
[null,null,1]
[null,null,"Ende",{"$f":"SUMIF($M$44:$M$44,\"x\",$D$44:$D$44)","v":0},{"$f":"SUMIF($N$44:$N$44,\"x\",$D$44:$D$44)","v":0},null,null,null,null,null,"Summe Ackerland:",{"$f":"Acker2","v":0}]
[null,null,"Summe der Flächen:",null,null,null,null,null,null,null,{"$f":"SUM($D$44:$D$44)","v":0}]
[]
[null,null,"5.2 Angabe der Sonderkulturen"]
[null,null,"Der erhebliche wirtschaftliche Schaden basiert nicht auf Flächen- bzw. Umsatzkriterien, sondern z.B. auf Anbau von Sonderkulturen oder folgender Nutzung 3:"]
[]
[]
[]
[]
[]
[null,null,"2 Erfasst werden nur Schäden, die ursächlich durch das Verbot in § 4 Abs. 1 PflSchAnwVO ausgelöst werden. \nErtragseinbußen oder Kosten für Substitutionsmaßnahmen, die sich aufgrund anderer Regelungen – insbesondere des Glyphosatverbotes\noder auf Grund naturschutzrechtlicher Verbote – ergeben, sind nicht berücksichtigungsfähig."]
[null,null,"3 z.B. Flächen des Gartenbaus, des Obst- und Weinbaus oder bei der Vermehrung von Saatgut und Pflanzgut oder problematischer Verunkrautung von Mähweide (z.B. Jakobskreuzkraut)"]
[]
[null,null,"Ab dem 1.1.2022 ist gemäß § 4 Abs. 1 Nr. 6 Landesnaturschutzgesetz auf Dauergrünland in Naturschutzgebieten die Anwendung von Pflanzenschutzmitteln verboten. Gemäß § 4 Abs. 2 Satz 4 Landesnaturschutzgesetz können Ausnahmen von diesem Verbot nur für die punktuelle Beseitigung giftiger, invasiver oder bei vermehrtem Auftreten für die Grünlandnutzung problematischen Pflanzenarten auf Antrag zugelassen werden. Ausnahmen vom Verbot des § 4 Abs. 1 der Pflanzenschutz-Anwendungsverordnung auf Dauergrünland bedürfen daher zusätzlich einer Ausnahme nach § 4 Abs. 2 Satz 4 des Landesnaturschutzgesetzes und umgekehrt. "]
[]
[]
[null,null,"5.3 Schutz heimischer Pflanzen und Tiere"]
[null,null,"Nr.","Invasive Art",null,null,null,"Bedrohte heimische Pflanzen/Tiere"]
[null,null,1]
[null,null,2]
[null,null,3]
[null,null,4]
[null,null,5]
[null,null,6]
[null,null,7]
[null,null,8]
[null,null,9]
[null,null,10]
[null,null,"Artenliste unter: \nhttps://neobiota.naturschutzinformationen-nrw.de/site/nav2/Artenlisten.aspx?ART=Pflanzen"]
[]
[]
[]
[null,null,"6. Begründung"]
[]
[]
[]
[]
[]
[]
[]
[]
[null,null," - Falls zum Schutz von Flora und Fauna: Bitte geben Sie eine aussagekräftige Begründung, dass geeignete mildere Mittel zur Gefahrenabwehr nicht vorhanden sind.\n - Sofern Sie Ihre Begründung in einer separaten Datei erstellen möchten, fügen Sie diese dem Antrag bitte als Anlage bei.\n - Zum Zeilenumbruch innerhalb des Eingabefeldes verwenden Sie bitte die Tastenkombination <Alt> + <Enter>."]
[]
[]
[]
[null,null,"7. Erklärung des Antragstellers"]
[null,null,"Hiermit erkläre ich, dass alle in diesem Antrag gemachten Angaben ordnungsgemäß und wahrheitsgetreu gemacht worden sind."]
[]
[null,null,"Flächen, für die eine Ausnahmegenehmigung erteilt wird, werden bei einem Erschwernisausgleich nicht berücksichtigt. Mit Einreichung des Antrags versichere ich, für die oben beantragten Flächen keinen Antrag auf Erschwernisausgleich gestellt zu haben."]
[]
[null,null,"Ich beantrage hiermit die Genehmigung der Anwendung von  Herbiziden und Insektiziden mit Kennzeichnung B1 bis B3 oder NN 410 auf Fläche(n) in Naturschutzgebieten, Nationalparken, Nationalen Naturmonumenten, Naturdenkmälern oder gesetzlich geschützten Biotopen, wie in diesem Antrag aufgeführt. Ich erkläre mein Einverständnis, insbesondere zur elekronischen Verarbeitung innerhalb der Behörde und mit der Naturschutzbehörde als Einvernehmensbehörde und der Bewilligungsstelle für Erschwernisausgleich."]
[null,null,null,null,null,null,null,"Durch Antragsbearbeitung können Kosten für Sie entstehen, die gesondert abgerechnet werden."]
[null,null,"Ort, Datum"]

{"sheet":"Daten","index":1,"n_rows":6,"n_cols":1,"rows_kept":6,"cut":false,"hidden":true,"merged":[]}
["Schutzgebiete"]
["gesetzlich geschütztes Biotop"]
["nationales Naturmonument"]
["Nationalpark"]
["Naturdenkmal"]
["Naturschutzgebiet"]

{"sheet":"Fruchtarten","index":2,"n_rows":225,"n_cols":5,"rows_kept":225,"cut":false,"hidden":false,"merged":[]}
[]
[null,"Fruchtarten","Kulturen §4","Grünland §4","Keine Kultur oder GL nach §4"]
[null," -  Kultur, nicht in Liste- Kultur in Antragsbegründung (6) zu nennen.","x"]
[null," - Beerenobst, nicht in Liste- Kultur in Antragsbegründung (6) zu nennen.","x"]
[null," - Blühpflanze, nicht in  Liste- Kultur in Antragsbegründung (6) zu nennen.","x"]
[null," - Frucht, nicht in  Liste- Kultur in Antragsbegründung (6) zu nennen.","x"]
[null," - Gemüse, nicht in  Liste- Kultur in Antragsbegründung (6) zu nennen.","x"]
[null," - Heilpflanze, nicht in Liste- Kultur in Antragsbegründung (6) zu nennen.","x"]
[null," - Kräuter, nicht in Liste- Kultur in Antragsbegründung (6) zu nennen.","x"]
[null," - Nutzung, nicht in Liste- in Antragsbegründung (6) zu nennen.","x"]
[null," - Obst, nicht in Liste- Kultur in Antragsbegründung (6) zu nennen.","x"]
[null," - Obstanlage, nicht in Liste- Kultur in Antragsbegründung (6) zu nennen.","x"]
[null," - Ziergehölze nicht in Liste- Kultur in Antragsbegründung (6) zu nennen.","x"]
[null," - Zierpflanzen, nicht in Liste- Kultur in Antragsbegründung (6) zu nennen.","x"]
[null,"Acker-/Puff-/Pferdebohne","x"]
[null,"Ackerbohnen","x"]
[null,"Ackergras","x"]
[null,"Artischocke","x"]
[null,"Auberginen","x"]
[null,"Basilikum","x"]
[null,"Baumschulgehölze (ohne Beerenobst)","x"]
[null,"Beerenobst","x"]
[null,"Beerenobst zur Vermehrung","x"]
[null,"Blattpetersilie","x"]
[null,"Blühfläche",null,null,"x"]
[null,"Blühstreifen",null,null,"x"]
[null,"Blumenkohl ","x"]
[null,"Bockshorn-, Schabzieger Klee","x"]
[null,"Brache (Blühmischungen)",null,null,"x"]
[null,"Brache mit Honigpflanzen",null,null,"x"]
[null,"Brache mit Honigpflanzen mehrj",null,null,"x"]
[null,"Brachefläche",null,null,"x"]
[null,"Brokkoli","x"]
[null,"Brombeere","x"]
[null,"Buchweizen","x"]
[null,"Buschbohne","x"]
[null,"Chicoreerüben","x"]
[null,"Chinakohl","x"]
[null,"Chinaschilf/Miscanthus","x"]
[null,"Dauergrünland (Grünland )",null,"x"]
[null,"Dauergrünland Mähweide",null,"x"]
[null,"Dauergrünland Schnittnutzung ",null,"x"]
[null,"Dauergrünland Weide",null,"x"]
[null,"Dicke Bohne","x"]
[null,"Dill, Frischmarkt","x"]
[null,"Dill, Industrieware","x"]
[null,"Dinkel, Sommer","x"]
[null,"Dinkel, Winter","x"]
[null,"Dost ","x"]
[null,"Drachenkopf (blühendes Kraut)","x"]
[null,"Emmer/ -Einkorn (Sommer)","x"]
[null,"Emmer/ -Einkorn, Winter","x"]
[null,"Erbse, Mark- (Korn)","x"]
[null,"Erbsen","x"]
[null,"Erbsen zur Körnergewinnung","x"]
[null,"Erdbeeren","x"]
[null,"Esparsette","x"]
[null,"Faserhanf","x"]
[null,"Feldsalat ","x"]
[null,"Fenchel (Gemüse/Körner)","x"]
[null,"Futtererbse","x"]
[null,"Futterrübe/Runkelrübe","x"]
[null,"Gartenbohne","x"]
[null,"Gartenkresse","x"]
[null,"Gemenge Erbsen/Bohnen","x"]
[null,"Gemenge Leguminosen / Getreide","x"]
[null,"Gemüseerbse","x"]
[null,"Gemüsekohl (auch Zierkohl)","x"]
[null,"Gemüserübe","x"]
[null,"Gemüserübsen","x"]
[null,"Gerste, Sommer","x"]
[null,"Gerste, Winter","x"]
[null,"Gladiolen (Gartengladiole)","x"]
[null,"Glanzgräser","x"]
[null,"Grassamenvermehrung","x"]
[null,"Grünkohl ","x"]
[null,"Grünkohl (Blatt), Handernte","x"]
[null,"Grünroggen","x"]
[null,"Gurke","x"]
[null,"Hafer, Sommer","x"]
[null,"Hafer, Winter","x"]
[null,"Hanf","x"]
[null,"Haselnüsse","x"]
[null,"Heidekraut","x"]
[null,"Hibiskus","x"]
[null,"Himbeere","x"]
[null,"Hopfen","x"]
[null,"Hornklee, Hornschotenklee","x"]
[null,"Johannisbeere","x"]
[null,"Kapuzinerkressen","x"]
[null,"Kartoffeln","x"]
[null,"Kernobst z.B. Äpfel, Birnen","x"]
[null,"Kichererbsen","x"]
[null,"Klee Sorten, verschiedene","x"]
[null,"Kleegras","x"]
[null,"Klee-Luzerne-Gemisch","x"]
[null,"Knollenfenchel","x"]
[null,"Kohl-/Steckrüben (Winter)","x"]
[null,"Kohlrabi","x"]
[null,"Kohlrübe (Rübe)","x"]
[null,"Kornblumen","x"]
[null,"Körnermais","x"]
[null,"Kürbis","x"]
[null,"Langj. o. 20 j. Stilll. AL",null,"x"]
[null,"Lauch","x"]
[null,"Lein (Flachs, Leinsamen)","x"]
[null,"Leindotter","x"]
[null,"Liebstöckel/Maggikraut","x"]
[null,"Lilien","x"]
[null,"Linse","x"]
[null,"Lupine","x"]
[null,"Lupine, Futter","x"]
[null,"Luzerne","x"]
[null,"Luzerne-Gras-Gemisch","x"]
[null,"Mais (ohne Zucker-/Silomais)","x"]
[null,"Mais, Zucker","x"]
[null,"Mais-CCM","x"]
[null,"Mais-Silo","x"]
[null,"Malven (Wilde Malve)","x"]
[null,"Mangold, Rote Beete/Rote Rübe","x"]
[null,"Massenrüben","x"]
[null,"Meerrettich","x"]
[null,"Melde (Garten-Melde)","x"]
[null,"Melissen","x"]
[null,"Melone","x"]
[null,"Menggetreide, Sommer","x"]
[null,"Menggetreide, Winter","x"]
[null,"Minzen (Pfefferm., Grüne M.)","x"]
[null,"Miscanthus ","x"]
[null,"Mischkulturen in Reihenanbau","x"]
[null,"Mischkulturen Saatgutmischung","x"]
[null,"Mohn (Schlafmohn, Backmohn)","x"]
[null,"Möhre (auch Futtermöhre)","x"]
[null,"Möhre Industrie","x"]
[null,"Möhre, Bund- ","x"]
[null,"Narzissen / Osterglocken","x"]
[null,"Nelken","x"]
[null,"Niederwald mit Kurzumtrieb","x"]
[null,"Öllein","x"]
[null,"Paprika, Chilli, Peperoni","x"]
[null,"Pastinake","x"]
[null,"Petersilie ","x"]
[null,"Phacelia","x"]
[null,"Platterbse","x"]
[null,"Porree ","x"]
[null,"Portulak","x"]
[null,"Quinoa","x"]
[null,"Radies","x"]
[null,"Raps","x"]
[null,"Raps, Sommer","x"]
[null,"Raps, Winter","x"]
[null,"Rebland","x"]
[null,"Rettich","x"]
[null,"Rhabarber","x"]
[null,"Rhododendron","x"]
[null,"Riesenweizengras/Szarvasi-Gras","x"]
[null,"Rispenhirse (Panicum)","x"]
[null,"Roggen, Sommer","x"]
[null,"Roggen, Winter","x"]
[null,"Rohrglanzgras","x"]
[null,"Rollrasen","x"]
[null,"Rosen (Baumschulen)","x"]
[null,"Rosen (Schnitt)","x"]
[null,"Rosenkohl","x"]
[null,"Rote Rübe","x"]
[null,"Rotklee","x"]
[null,"Rotkohl ","x"]
[null,"Rübensamenvermehrung","x"]
[null,"Rübsen, Sommer (auch Rübsamen)","x"]
[null,"Rübsen, Winter (auch Rübsamen)","x"]
[null,"Rucola","x"]
[null,"Salate, Blatt-, Lollo, Eis, Kopf, Romana","x"]
[null,"Salate, Endivie","x"]
[null,"Salate, Radicchio ","x"]
[null,"Salatgurke (auch Einlegegurke)","x"]
[null,"Salbei","x"]
[null,"Schafgarbe","x"]
[null,"Schnittblumen","x"]
[null,"Schnittlauch, gepflanzt","x"]
[null,"Schnittlauch, gesät","x"]
[null,"Schutzstreifen Erosion(nur AUM)",null,"x"]
[null,"Schwarzwurzeln","x"]
[null,"Seidenpflanzen (Indianer-S.)","x"]
[null,"Sellerie (Knoll/Bleich/Stang)","x"]
[null,"Silomais (als Hauptfutter)","x"]
[null,"Sojabohne ","x"]
[null,"Spargel","x"]
[null,"Spinat","x"]
[null,"Stangenbohne Standard","x"]
[null,"Stärkekartoffeln","x"]
[null,"Steinklee","x"]
[null,"Steinobst","x"]
[null,"Stielmus (Rübstiel)","x"]
[null,"Streuobst (ohne Wiesennutzung)","x"]
[null,"Streuobst mit DGL-Nutzung",null,"x"]
[null,"Sudangras, Zuckerhirse","x"]
[null,"Tabak","x"]
[null,"Teltower Rübchen (Herbstanbau)","x"]
[null,"Tomaten","x"]
[null,"Topinambur","x"]
[null,"Triticale, Sommer","x"]
[null,"Triticale, Winter","x"]
[null,"Tulpen (Garten-Tulpe)","x"]
[null,"Uferrandstreifen (Acker)",null,"x"]
[null,"Uferrandstreifen (Grünland)",null,"x"]
[null,"Uferrandstrfprog. (AL nur AUM)",null,"x"]
[null,"Unbefestigte Mieten AL",null,"x"]
[null,"Walnüsse","x"]
[null,"Weihnachtsbäume","x"]
[null,"Wein (Anbau)","x"]
[null,"Wein (Baumschule)","x"]
[null,"Weißkohl (Frischmarkt)","x"]
[null,"Weißkohl (Industrie)","x"]
[null,"Weizen (Hart)/Durum, Sommer","x"]
[null,"Weizen (Hart)/Durum, Winter","x"]
[null,"Weizen (Weich), Sommer","x"]
[null,"Weizen (Weich), Winter","x"]
[null,"Wicke","x"]
[null,"Wicke, Futter","x"]
[null,"Wildacker auf lw. Fläche",null,"x"]
[null,"Wirsing","x"]
[null,"Zucchini ","x"]
[null,"Zuckerhirse","x"]
[null,"Zuckerrüben","x"]
[null,"Zwiebel","x"]

{"sheet":"Hilfe","index":3,"n_rows":37,"n_cols":2,"rows_kept":37,"cut":false,"hidden":false,"merged":[]}
[]
[]
[null,"1. Antragsteller"]
[null,"Geben Sie hier Ihre Stammdaten ein. Angaben, die mit einem roten Stern gekennzeichnet sind, sind Pflichtfelder."]
[]
[null,"2. Schutzgebiet"]
[null,"Nennen Sie das betreffende Schutzgebiet und wählen Sie in der rechten Spalte die Art des Schutzgebietes aus. Verwenden Sie hierzu die Auswahlliste, die sich bei Aktivierung des Feldes ausklappt (Naturschutzgebiet, Nationalpark, Nationales Naturmonument, Naturdenkmal, gesetzlich geschütztes Biotop gem. § 30 BNatSchG).\nTreten Sie gegebenfalls bitte mit der zuständigen Behörde in Kontakt, um zu erfahren, um welche Art von Schutzgebiet es sich handelt."]
[]
[null,"3. Beantragte Flächen im Schutzgebiet und Nutzung"]
[null,"Wählen Sie das Feldblocksystem für die Angabe der Flächen an, soweit dieses System für Ihre Antragsflächen zur Verfügung steht. Nur falls für eine oder mehrere Ihrer Flächen kein Feldblocksystem vorhanden ist, geben Sie diese Flächen im Gemarkungssystem an. Aktivieren Sie hierzu (zusätzlich) das entsprechende Feld „kein Feldblocksystem für Flächen vorhanden“. "]
[]
[null,"3.1 Angabe von Feldblöcken"]
[null,"Geben Sie hier bitte Ihre beantragten Ackerflächen* im Schutzgebiet als Feldblockbezeichnung und deren exakten Größen an. Ackerflächen im Sinne des Antrages sind hier weit zu verstehen und sollen auch Sonderkulturen und relevante Dauerkulturen einbeziehen, die in einem besonderen Maße regelmäßig Herbizid/Insektizid-Anwendungen erfordern. \n- Relevante Flächen sind hierbei z.B. Ackerland, sowie Kulturen wie Obst und Gemüse, Zierpflanzenanbau.\n- Nicht relevante Flächen sind z.B. Dauergrünland, Bracheflächen oder Blühstreifen. \n\nBitte geben Sie weiterhin jeweils die ackerbauliche Kutur an. Grundlage ist die Anbauplanung des laufenden/kommenden Jahres. Verwenden Sie hierzu die Auswahlliste, die sich bei Berührung mit dem Mauszeiger ausklappt. Jede Fläche ist nur einmal anzugeben. Bei Fruchtwechsel kann die wertigste Kultur angegeben werden. Falls die von Ihnen angebaute Kultur nicht in der Liste enthalten ist, wählen Sie entsprechend \"...nicht in der Liste\" und nennen Sie Ihre Kultur (und den Feldblock) in der Begründung (6).\n\nZur Eintragung einer weiteren Fläche nutzen Sie bitte das Feld \"Feldblock hinzufügen\" oder \"Fläche hinzufügen\". Eine weitere Zeile zum Eintrag erscheint.\n\n*Nicht anrechnungsfähig sind Ackerflächen in FFH-Gebieten, die nicht als Naturschutzgebiet, Nationalpark, nationales Naturmonument, Naturdenkmal oder gesetzlich geschützter Biotop geschützt sind (Verbotsfreistellung nach § 4 Abs. 3 PflSchAnwV bis 30.06.2024).  "]
[]
[null,"3.2 Kein Feldblocksystem für Flächen vorhanden"]
[null,"Geben Sie hier nur für die Flächen Ihre Flurstücke ein, für die Sie kein Feldblocksystem haben. Weitere Details entnehmen Sie bitte der Erläuterung zu 3.1."]
[]
[null,"4. Zweck der Anwendung gemäß § 4 Absatz 1 PflSchAnwV Absatz 2"]
[null,"Geben Sie an, welchen Antragsgrund Sie für die Genehmigung geltend machen. Bei Antragsgrund \"erheblicher landwirtschaftlicher oder sonstiger Schäden\" erfolgt die Einschätzung der Schäden über die Angaben in 5 und 5.1/5.2. Bei Antragsgrund \"Schutz heimischer Pflanzen und Tiere\" werden Sie direkt zu Punkt 5.3 des Antrags geführt."]
[]
[null,"5. Einschätzung erheblicher landwirtschaftlicher oder sonstiger wirtschaftlicher Schäden"]
[null,"Geben Sie hier die Gesamtgröße aller Ihrer Flächen mit Ackerland (einschließlich der Kulturen wie Obst und Gemüse, Zierpflanzenanbau) an. Sofern die Berechnung anhand Ihrer Angabe ergibt, dass mehr als 30% Ihrer bewirtschafteten Ackerfläche (im oben genannten Sinne) im Schutzgebiet liegt, können Sie Ihren Antrag mit der allgemeinen Erklärung am Ende des Formulars abschließen und die Versendung aktivieren (Feld: „Antrag jetzt einreichen“). \n\nFalls 30% oder weniger Ihrer bewirtschafteten, relevanten Ackerflächen im Schutzgebiet liegen, bietet Ihnen das Menü folgende Auswahl aus:      \n– „Einzelflächen/ Sonderkulturen“ falls einzelne Flächen ohne die Anwendung von Herbiziden/Insektiziden nicht zu bewirtschaften oder verwendbar sind. Dies können z.B. Flächen im Gartenbau, Obst- und Weinbau oder zur Vermehrung von Saatgut und Pflanzgut sein, oder auch Mähweiden mit Verunkrautung mit Jakobskreuzkraut. Bitte geben Sie die Details Ihres Einzelfalls in der Begründung an. Eine eingeschränkte oder erschwerte Vermarktungsmöglichkeit wird für eine Begründung in der Regel nicht ausreichen.       \n– Aktivieren Sie das Feld „Betrieblicher Umsatz um mehr als 15% reduziert“, wenn Ihr Schaden darauf beruht, dass Ihr ackerflächenbezogener betrieblicher Umsatz aufgrund der Einschränkungen im Schutzgebiet um mehr als 15% sinkt.\n\n\n"]
[]
[null,"5.1 Angabe aller bewirtschafteten Flächen (nicht im Schutzgebiet)"]
[null,"Geben Sie alle Ihre Flächen ein, die nicht in einem Schutzgebiet liegen und Ackerland sind, einschließlich Kulturen wie Obst und Gemüse oder Zierpflanzenanbau.\n\nBitte geben Sie dazu sämtliche von Ihnen bewirtschafteten Flächen mit Größe und ackerbaulicher Kultur an. Grundlage ist die Anbauplanung des laufenden Jahres, auf der vom Betrieb selbst bewirtschafteten Grundfläche. Verwenden Sie hierzu die Auswahlliste, die sich bei Berührung mit dem Mauszeiger ausklappt. Jede Fläche ist nur einmal anzugeben. Bei Fruchtwechsel kann die wertigste Kultur angegeben werden. Falls die von Ihnen angebaute Kultur nicht in der Liste enthalten ist, wählen Sie entsprechend \"...nicht in der Liste\" und nennen Sie den Feldblock und Ihre Kultur in der Begründung (6).\nDie Eingabe soll nach Möglichkeit im Feldblocksystem erfolgen, nur falls nicht vorhanden im Gemarkungssystem.\nZur Eintragung einer weiteren Fläche nutzen Sie bitte das Feld \"Feldblock hinzufügen\" oder \"Fläche hinzufügen\". Eine weitere Zeile zum Eintrag erscheint."]
[]
[null,"5.2 Angabe der Sonderkulturen"]
[null,"Geben Sie Ihre Sonderkulturen ein, falls einzelne Flächen ohne die Anwendung von Herbiziden/Insektiziden nicht zu bewirtschaften oder verwendbar sind. Dies können z.B. Flächen im Gartenbau, Obst- und Weinbau oder zur Vermehrung von Saatgut und Pflanzgut sein, oder auch Mähweiden mit Verunkrautung mit Jakobskreuzkraut. Bitte geben Sie die Details Ihres Einzelfalls in der Begründung an. Eine eingeschränkte oder erschwerte Vermarktungsmöglichkeit wird für eine Begründung in der Regel nicht ausreichen. "]
[]
[null,"5.3 Schutz heimischer Pflanzen und Tiere"]
[null,"Ausnahmen sind möglich beim Auftreten einer der folgenden Arten:\nhttps://neobiota.naturschutzinformationen-nrw.de/site/nav2/Artenlisten.aspx?ART=Pflanzen"]
[]
[null,"6. Begründung"]
[null,"Geben Sie eine Begründung für diesen Antrag ein. \n- Eine nachvollziehbare Begründung ist insbesondere erforderlich, wenn Sie angeben, dass in der Einzelflächenbetrachtung Ihre Kultur im Sinne von Antragsnummer 5.2 auf der Fläche ohne die Anwendung von Herbiziden/Insektiziden nicht zu bewirtschaften oder verwendbar sind. Dies können z.B. bei Flächen im Gartenbau, Obst- und Weinbau oder zur Vermehrung von Saatgut und Pflanzgut der Fall sein, oder auch Mähweiden bei Verunkrautung mit Jakobskreuzkraut. \n Ihren Antrag müssen Sie ebenfalls nachvollziehbar begründen, wenn sie auf einen Umsatzverlust von mehr als 15% abstellen. Der betriebliche Umsatz ist um mehr als 15% reduziert“, wenn Ihr Schaden darauf beruht, dass Ihr ackerflächenbezogener betrieblicher Umsatz aufgrund der Einschränkungen im Schutzgebiet um mehr als 15% sinkt. \n\n- Falls die von Ihnen angebaute Kultur(en) nicht über einen Listeneintrag in 3.1 oder 5.1 direkt genannt werden konnte, nennen Sie hier Ihre Kultur(en).\n\n- Bitte nennen Sie hier, falls zutreffend die von Ihnen dem Antrag beigefügten Dokumente."]
[]
[null,"7. Erklärung des Antragstellers"]
[null,"Bitte lesen Sie sich die Erklärungen gründlich durch, die Sie mit Versendung des Antrages bestätigen.    \n\n- Sie können den Antrag jederzeit speichern und auch ausdrucken.\n- Nachdem Sie Ihre Angaben im Dokument gemacht haben, können Sie den Versand der Datei als Email direkt aus dem Antragsformular heraus in Gang setzen (\"Antrag jetzt einreichen\"). Alternativ senden Sie bitte die von Ihnen bearbeitete Datei an folgende Email Adresse: PSM-NSG@LWK.NRW.DE\n- Sie können dem Antrag Dokumente zur Ergänzung oder Verifizierung Ihres Antrags beifügen: Nachdem das Feld \"Antrag jetzt Einreichen\" gedrückt wurde, kann dem Antrag eine Datei angehängt werden. Erstellen Sie ggf. eine ZIP-Datei, die mehrere Dokumente enthält. Die Größe dieser Datei ist auf 10MB begrenzt.\n"]